bitfinex-derivatives/quotes_SOLF0:USTF0_20260127
["timestamp","ask_amount","ask_price","bid_price","bid_amount"]
[1769486413543,3.91380807,124.51,124.46,3.67864455]
[1769486414745,3.91380807,124.51,124.46,6.04876212]
[1769486418643,3.91380807,124.51,124.46,3.67864455]
[1769486419942,3.91380807,124.48,124.42,6.04876212]
[1769486420244,3.91380807,124.48,124.42,10.92084455]
[1769486421844,3.91380807,124.48,124.42,13.29096212]
[1769486422545,6.28392564,124.48,124.42,10.92084455]
[1769486423753,3.91380807,124.48,124.42,13.28986153]
[1769486423959,3.91380807,124.48,124.43,3.93092497]
[1769486432354,3.91380807,124.48,124.43,6.29994195]
[1769486434459,6.14029945,124.5,124.44,3.93092497]
[1769486434953,3.77128247,124.49,124.44,6.29994195]
[1769486435555,6.15279831,124.5,124.45,6.29994195]
[1769486435851,11.00918247,124.51,124.45,6.29994195]
[1769486436053,3.77128247,124.5,124.45,6.29994195]
[1769486437549,9.92283221,124.5,124.45,6.29994195]
[1769486437748,9.92283221,124.5,124.45,3.93092497]
[1769486441860,3.77128247,124.49,124.44,7.2414]
[1769486442558,3.77128247,124.49,124.44,11.17232497]
[1769486444361,9.92620564,124.49,124.44,11.17232497]
[1769486447961,3.77128247,124.49,124.44,11.17232497]
[1769486449058,3.77128247,124.49,124.44,3.93092497]
[1769486449770,3.77128247,124.51,124.46,3.93092497]
[1769486449969,9.92794614,124.51,124.46,3.93092497]
[1769486450367,3.77128247,124.5,124.46,3.93092497]
[1769486450769,3.77128247,124.5,124.45,2.36901698]
[1769486450972,3.77128247,124.5,124.44,13.54124195]
[1769486452767,9.9286867,124.5,124.44,13.54124195]
[1769486452967,3.75909746,124.47,124.42,10.94314568]
[1769486455071,3.75909746,124.47,124.42,13.31216266]
[1769486455274,3.75909746,124.49,124.44,3.70114568]
[1769486455774,10.99759746,124.49,124.44,3.70114568]
[1769486457773,13.36661444,124.49,124.44,3.70114568]
[1769486460175,9.60751698,124.49,124.44,3.70114568]
[1769486460385,3.75909746,124.48,124.44,3.70114568]
[1769486463078,3.75909746,124.5,124.45,3.70114568]
[1769486463279,9.9181281,124.5,124.45,6.07016266]
[1769486463979,9.9181281,124.5,124.45,3.70114568]
[1769486464180,6.15903064,124.49,124.45,3.70114568]
[1769486466385,9.9181281,124.5,124.45,6.07016266]
[1769486466686,6.15903064,124.5,124.46,6.07016266]
[1769486470584,6.15903064,124.5,124.46,3.70114568]
[1769486470786,10.99689746,124.51,124.46,3.70114568]
[1769486471689,3.75909746,124.51,124.46,3.70114568]
[1769486471889,9.91051276,124.51,124.46,3.70114568]
[1769486473989,3.75909746,124.51,124.46,3.70114568]
[1769486474191,9.91009879,124.51,124.46,3.70114568]
[1769486477893,3.75909746,124.5,124.46,3.70114568]
[1769486478194,3.75909746,124.5,124.44,6.07016266]
[1769486478381,3.75909746,124.49,124.44,6.07016266]
[1769486478582,3.75909746,124.47,124.42,6.07016266]
[1769486478785,6.12811444,124.47,124.42,3.70114568]
[1769486480591,6.25385776,124.45,124.4,3.83407655]
[1769486483395,3.79137522,124.44,124.4,3.83407655]
[1769486483594,3.79137522,124.44,124.38,214.07696194]
[1769486483897,3.79137522,124.44,124.39,3.77062141]
[1769486485592,6.16175385,124.44,124.39,3.77062141]
[1769486486599,2.37037863,124.45,124.39,3.77062141]
[1769486486791,6.16175385,124.45,124.39,3.77062141]
[1769486488298,3.79137522,124.44,124.39,3.77062141]
[1769486488499,6.16175385,124.44,124.39,3.77062141]
[1769486494297,2.37037863,124.43,124.39,3.77062141]
[1769486494904,6.16175385,124.43,124.39,3.77062141]
[1769486495605,3.79137522,124.43,124.39,3.77062141]
[1769486496493,3.79137522,124.43,124.38,7.2448]
[1769486496700,3.79137522,124.43,124.37,324.49062141]
[1769486496898,6.16175385,124.43,124.37,324.49062141]
[1769486498003,6.16175385,124.43,124.37,331.73602141]
[1769486499101,6.16175385,124.43,124.38,3.77062141]
[1769486499302,13.40265385,124.45,124.39,3.77062141]
[1769486499704,3.79137522,124.44,124.39,3.77062141]
[1769486500205,3.79137522,124.44,124.39,11.01492141]
[1769486500503,3.79137522,124.44,124.39,13.38530004]
[1769486509815,3.79137522,124.44,124.4,2.37037863]
[1769486510118,11.03167522,124.46,124.4,6.14100004]
[1769486510718,11.03167522,124.46,124.41,6.14100004]
[1769486513419,3.79137522,124.46,124.41,6.14100004]
[1769486514122,3.79137522,124.46,124.42,2.37037863]
[1769486515220,7.2397,124.47,124.42,6.42146537]
[1769486515418,7.2397,124.47,124.43,2.37037863]
[1769486515614,11.27152896,124.47,124.43,2.37037863]
[1769486518231,4.03182896,124.47,124.43,2.37037863]
[1769486520127,4.03182896,124.47,124.44,2.37037863]
[1769486520328,4.03182896,124.49,124.44,6.42146537]
[1769486520532,4.03182896,124.49,124.45,2.37037863]
[1769486521031,7.2384,124.5,124.46,2.37037863]
[1769486522042,4.03182896,124.51,124.46,2.37037863]
[1769486522934,4.03182896,124.51,124.46,6.42146537]
[1769486523136,4.03182896,124.53,124.49,2.37037863]
[1769486525440,4.03182896,124.53,124.48,6.42146537]
[1769486526746,4.03182896,124.53,124.48,4.05108674]
[1769486529344,4.03182896,124.53,124.48,6.42146537]
[1769486530639,4.03182896,124.53,124.43,112.6514]
[1769486530640,4.03182896,124.52,124.46,4.05108674]
[1769486530837,4.03182896,124.52,124.46,6.42146537]
[1769486531042,4.03182896,124.52,124.47,4.05108674]
[1769486532136,4.03182896,124.52,124.47,6.42146537]
[1769486534346,4.03182896,124.52,124.48,2.37037863]
[1769486535246,4.03182896,124.54,124.48,6.42146537]
[1769486537753,11.26732896,124.55,124.5,4.05108674]
[1769486538655,4.03182896,124.54,124.48,6.42146537]
[1769486539156,4.03182896,124.53,124.48,4.05108674]
[1769486539761,4.03182896,124.53,124.48,6.42146537]
[1769486540556,4.03182896,124.53,124.48,4.05108674]
[1769486542255,6.40220759,124.53,124.48,4.05108674]
[1769486542464,4.07152024,124.52,124.47,7.2393]
[1769486543663,4.07152024,124.52,124.46,6.40662238]
[1769486544055,6.44189887,124.52,124.46,6.40662238]
[1769486544557,4.07152024,124.52,124.46,6.40662238]
[1769486545554,6.43895987,124.52,124.46,4.03624375]
[1769486547059,4.07152024,124.51,124.46,4.03624375]
[1769486547361,7.2364,124.53,124.44,4.03624375]
[1769486547362,6.43895987,124.49,124.44,4.03624375]
[1769486548062,4.07152024,124.49,124.44,11.27744375]
[1769486548663,4.07152024,124.49,124.44,4.03624375]
[1769486549158,6.43895987,124.51,124.45,4.03624375]
[1769486549460,4.07152024,124.51,124.45,6.40368338]
[1769486550157,4.07152024,124.51,124.45,4.03624375]
[1769486550762,6.43895987,124.51,124.45,4.03624375]
[1769486555465,4.07152024,124.51,124.45,6.40368338]
[1769486555770,4.07152024,124.5,124.45,4.03624375]
[1769486555970,4.07152024,124.5,124.44,2.36743963]
[1769486555971,4.07152024,124.49,124.43,6.40368338]
[1769486556270,4.07152024,124.49,124.44,4.03624375]
[1769486557572,4.07152024,124.48,124.43,11.27814375]
[1769486562066,4.07152024,124.48,124.43,13.64558338]
[1769486562467,13.67685987,124.5,124.44,4.03624375]
[1769486562667,11.30942024,124.5,124.44,6.40368338]
[1769486572180,11.30942024,124.5,124.44,13.64508338]
[1769486578382,4.07152024,124.5,124.44,13.64508338]
[1769486580383,4.07152024,124.5,124.45,4.02617492]
[1769486582884,4.07152024,124.5,124.45,11.26697492]
[1769486583086,6.11369666,124.52,124.46,4.02617492]
[1769486583281,6.19322156,124.51,124.46,4.02617492]
[1769486583785,9.93947859,124.51,124.46,4.02617492]
[1769486585587,3.74625703,124.5,124.45,7.2408]
[1769486585788,3.74625703,124.49,124.45,11.26697492]
[1769486586481,3.74625703,124.49,124.43,13.63501455]
[1769486587181,3.74625703,124.49,124.44,11.26757492]
[1769486589688,9.94631777,124.49,124.44,11.26757492]
[1769486592790,9.94631777,124.48,124.43,2.36743963]
[1769486592991,9.94631777,124.48,124.42,327.13361455]
[1769486593192,9.94631777,124.48,124.43,4.02617492]
[1769486593894,9.94631777,124.48,124.43,11.26817492]
[1769486597500,3.74625703,124.48,124.43,11.26817492]
[1769486600604,2.36743963,124.49,124.44,3.96593997]
[1769486600798,8.56049632,124.49,124.44,3.96593997]
[1769486600997,12.39319486,124.49,124.44,3.96593997]
[1769486601304,3.83269854,124.49,124.44,3.96593997]
[1769486601599,10.00869006,124.49,124.44,3.96593997]
[1769486601788,10.00869006,124.49,124.44,11.20723997]
[1769486601988,3.83269854,124.49,124.44,11.20723997]
[1769486602799,3.83269854,124.49,124.44,13.5746796]
[1769486605600,3.83269854,124.49,124.44,13.5753052]
[1769486610504,3.83269854,124.49,124.45,2.36806523]
[1769486611806,3.83269854,124.49,124.44,13.5753052]
[1769486612197,10.00866643,124.49,124.44,13.5753052]
[1769486612808,10.00866643,124.49,124.44,6.3340052]
[1769486614809,3.83269854,124.49,124.44,6.3340052]
[1769486620201,3.83269854,124.49,124.44,13.5754052]
[1769486622913,10.01314471,124.49,124.44,13.5754052]
[1769486623116,10.01314471,124.49,124.44,6.3340052]
[1769486623608,3.79727024,124.47,124.42,4.06298718]
[1769486624010,3.79727024,124.47,124.42,6.43105241]
[1769486626308,3.79727024,124.49,124.43,6.43105241]
[1769486626503,6.18054604,124.48,124.43,6.43105241]
[1769486626715,9.97781628,124.48,124.43,6.43105241]
[1769486629223,3.79727024,124.47,124.43,4.06298718]
[1769486639320,3.79727024,124.47,124.43,6.43105241]
[1769486639921,3.79727024,124.47,124.43,4.06298718]
[1769486641521,3.87133298,124.46,124.41,4.01243422]
[1769486643015,11.11183298,124.46,124.41,4.01243422]
[1769486648626,11.11183298,124.46,124.41,6.38049945]
[1769486650433,3.87133298,124.48,124.43,6.38049945]
[1769486650930,6.17752224,124.49,124.45,6.38049945]
[1769486651328,3.87133298,124.5,124.45,6.38049945]
[1769486651628,3.87133298,124.5,124.46,2.36806523]
[1769486651834,6.17927615,124.5,124.47,2.36806523]
[1769486652032,11.10863298,124.52,124.47,2.36806523]
[1769486652228,6.17982778,124.51,124.47,2.36806523]
[1769486652732,11.10863298,124.52,124.47,2.36806523]
[1769486659135,11.10863298,124.52,124.46,13.62069945]
[1769486659633,3.87133298,124.52,124.47,4.01243422]
[1769486659838,11.10733298,124.54,124.48,6.38049945]
[1769486660839,3.75533832,124.53,124.48,6.38049945]
[1769486661736,3.75533832,124.53,124.48,4.01243422]
[1769486661937,10.99153832,124.53,124.48,4.01243422]
[1769486662140,3.75533832,124.52,124.48,4.01243422]
[1769486665539,3.75533832,124.52,124.48,6.38049945]
[1769486665738,3.627514,124.54,124.49,2.36806523]
[1769486667546,3.627514,124.54,124.49,2.36629915]
[1769486667841,3.627514,124.56,124.51,2.36629915]
[1769486668033,3.627514,124.56,124.52,2.36629915]
[1769486668435,2.36629915,124.59,124.53,2.36629915]
[1769486668436,3.627514,124.58,124.53,2.36629915]
[1769486668640,3.627514,124.58,124.54,2.36629915]
[1769486668949,3.627514,124.58,124.52,3.91891817]
[1769486668950,3.627514,124.58,124.53,2.36629915]
[1769486669149,10.861014,124.58,124.53,2.36629915]
[1769486670151,7.2339,124.57,124.53,2.36629915]
[1769486673755,3.627514,124.58,124.53,2.36629915]
[1769486674351,10.860914,124.58,124.53,6.28521732]
[1769486675549,10.860914,124.58,124.53,3.91891817]
[1769486685660,13.22721315,124.58,124.53,3.91891817]
[1769486688751,5.99381315,124.54,124.49,3.91891817]
[1769486689764,5.99381315,124.53,124.49,3.91891817]
[1769486691664,5.99381315,124.52,124.47,3.91891817]
[1769486692459,6.06471578,124.5,124.46,320.58]
[1769486693858,6.06471578,124.5,124.45,3.61449459]
[1769486694562,3.69841663,124.5,124.45,3.61449459]
[1769486694761,3.69841663,124.5,124.45,5.98079374]
[1769486695762,3.69841663,124.5,124.46,3.61449459]
[1769486701367,3.69841663,124.5,124.45,2.36629915]
[1769486701568,3.69841663,124.5,124.44,5.98079374]
[1769486701871,3.69841663,124.48,124.42,3.61449459]
[1769486703362,6.06471578,124.48,124.42,3.61449459]
[1769486703963,10.93791663,124.48,124.42,3.61449459]
[1769486709179,3.69841663,124.48,124.42,3.61449459]
[1769486715280,6.06471578,124.47,124.4,324.27449459]
[1769486715484,3.69841663,124.46,124.4,324.27449459]
[1769486719085,3.69841663,124.46,124.4,326.64079374]
[1769486721788,3.53020304,124.44,124.4,324.27449459]
[1769486721977,5.89650219,124.44,124.38,3.70277944]
[1769486722179,3.53020304,124.43,124.38,3.70277944]
[1769486728788,3.53020304,124.43,124.38,6.06907859]
[1769486729591,3.53020304,124.43,124.38,6.07327663]
[1769486733694,3.53020304,124.43,124.38,3.70277944]
[1769486734395,3.61304188,124.45,124.39,3.4957374]
[1769486735094,3.61304188,124.44,124.39,3.4957374]
[1769486738296,3.61304188,124.43,124.38,7.2447]
[1769486738502,3.61304188,124.43,124.38,10.7404374]
[1769486739896,3.61304188,124.43,124.39,3.4957374]
[1769486740695,3.61304188,124.43,124.38,10.7404374]
[1769486743098,3.61304188,124.45,124.39,3.4957374]
[1769486743398,3.61304188,124.45,124.39,5.86623459]
[1769486748894,10.85394188,124.45,124.39,5.86623459]
[1769486749096,3.61304188,124.44,124.39,5.86623459]
[1769486749397,3.61304188,124.44,124.39,3.4957374]
[1769486755205,7.2409,124.45,124.4,3.65008376]
[1769486755403,3.4416388,124.46,124.4,3.65008376]
[1769486755603,3.4416388,124.46,124.4,6.02058095]
[1769486755807,3.4416388,124.45,124.4,6.02058095]
[1769486757102,9.62205793,124.45,124.4,6.02058095]
[1769486758405,3.4416388,124.47,124.41,6.02058095]
[1769486758610,9.62703049,124.47,124.41,6.02058095]
[1769486758900,9.62703049,124.47,124.42,6.02058095]
[1769486761699,9.62703049,124.47,124.42,3.65008376]
[1769486761914,3.4416388,124.51,124.46,2.37049719]
[1769486762101,3.4416388,124.51,124.46,6.02058095]
[1769486762709,9.63009561,124.51,124.46,6.02058095]
[1769486762909,6.18845681,124.5,124.46,6.02058095]
[1769486763112,3.4416388,124.51,124.46,6.02058095]
[1769486763603,9.62254341,124.51,124.46,6.02058095]
[1769486763798,6.18090461,124.5,124.46,6.02058095]
[1769486764005,3.4416388,124.51,124.46,6.02058095]
[1769486764006,10.6792388,124.51,124.46,6.02058095]
[1769486765903,10.6792388,124.51,124.47,2.37049719]
[1769486768003,3.4416388,124.5,124.4,116.32848376]
[1769486768207,3.4416388,124.44,124.37,6.02058095]
[1769486768411,5.81213599,124.44,124.38,3.65008376]
[1769486768710,3.4416388,124.43,124.38,3.65008376]
[1769486769113,3.4416388,124.43,124.39,2.37049719]
[1769486770812,3.4416388,124.43,124.38,6.02058095]
[1769486773814,3.4416388,124.43,124.38,3.65008376]
[1769486774115,13.05433599,124.43,124.38,3.65008376]
[1769486774515,10.6838388,124.43,124.38,3.65008376]
[1769486778711,3.4416388,124.43,124.38,6.02058095]
[1769486779817,3.4416388,124.43,124.38,3.65008376]
[1769486780415,3.4416388,124.43,124.38,6.02058095]
[1769486781320,10.16362522,124.43,124.38,6.02058095]
[1769486781516,3.4416388,124.43,124.38,6.02058095]
[1769486782014,10.16355128,124.43,124.38,6.02058095]
[1769486782214,3.4416388,124.43,124.38,6.02058095]
[1769486782616,10.16348501,124.43,124.38,6.02058095]
[1769486782911,3.4416388,124.43,124.38,6.02058095]
[1769486783312,10.16348501,124.43,124.38,6.02058095]
[1769486783512,3.4416388,124.43,124.38,6.02058095]
[1769486784017,10.16403097,124.43,124.38,6.02058095]
[1769486784217,3.4416388,124.43,124.38,3.65008376]
[1769486784416,10.16442251,124.43,124.38,3.65008376]
[1769486789320,3.35935424,124.45,124.38,3.65008376]
[1769486789526,6.72352432,124.44,124.39,3.45579217]
[1769486795426,10.08287856,124.44,124.39,3.45579217]
[1769486798523,3.35935424,124.46,124.41,3.45579217]
[1769486798925,6.72375233,124.47,124.41,3.45579217]
[1769486799326,3.35935424,124.48,124.43,3.45579217]
[1769486799529,10.0627197,124.48,124.44,3.45579217]
[1769486800427,3.35935424,124.5,124.44,5.8259458]
[1769486800629,6.70235647,124.49,124.44,5.8259458]
[1769486801428,10.06171071,124.5,124.44,5.8259458]
[1769486801829,10.06171071,124.5,124.45,2.37015363]
[1769486803524,10.06171071,124.5,124.45,5.8259458]
[1769486803727,3.35935424,124.5,124.46,2.37015363]
[1769486804324,3.35935424,124.52,124.47,5.8259458]
[1769486804731,10.05377697,124.52,124.47,5.8259458]
[1769486805025,3.35935424,124.52,124.47,5.8259458]
[1769486806226,10.05377535,124.52,124.47,5.8259458]
[1769486806827,3.35935424,124.52,124.48,2.37015363]
[1769486807226,3.35935424,124.52,124.47,5.8259458]
[1769486820544,3.48117815,124.7,124.63,3.43826851]
[1769486820745,3.48117815,124.68,124.61,3.43826851]
[1769486821047,112.387,124.73,124.59,3.43826851]
[1769486821048,3.48117815,124.65,124.59,3.43826851]
[1769486821252,5.85133178,124.65,124.59,10.67076851]
[1769486821848,3.48117815,124.62,124.56,10.67246851]
[1769486822143,3.48117815,124.61,124.56,10.67246851]
[1769486822552,3.48117815,124.61,124.56,3.43826851]
[1769486823158,3.48117815,124.61,124.54,10.67356851]
[1769486823453,5.85133178,124.6,124.54,3.43826851]
[1769486823949,3.48117815,124.6,124.54,5.80842214]
[1769486826156,3.48117815,124.6,124.55,2.37015363]
[1769486827253,2.37015363,124.6,124.54,3.43826851]
[1769486827454,3.48117815,124.59,124.53,2.37015363]
[1769486827656,3.48117815,124.59,124.52,326.40842214]
[1769486827956,3.48117815,124.59,124.53,3.43826851]
[1769486828459,3.48117815,124.59,124.53,5.80842214]
[1769486830156,3.48117815,124.59,124.54,5.80842214]
[1769486830461,3.48117815,124.61,124.54,3.43826851]
[1769486830760,3.48117815,124.61,124.55,2.37015363]
[1769486831457,3.48117815,124.61,124.56,2.37015363]
[1769486832353,3.48117815,124.61,124.57,2.37015363]
[1769486835064,3.48117815,124.61,124.56,2.37015363]
[1769486840368,3.48117815,124.61,124.57,2.37015363]
[1769486842165,3.48117815,124.61,124.56,2.37015363]
[1769486845268,3.48117815,124.61,124.51,7.2369]
[1769486845473,3.53289127,124.6,124.53,5.95019033]
[1769486845673,3.53289127,124.59,124.53,5.95019033]
[1769486846278,3.53289127,124.59,124.54,2.37015363]
[1769486849370,3.53289127,124.59,124.54,5.95019033]
[1769486850481,3.53289127,124.59,124.51,3.5800367]
[1769486850482,3.53289127,124.58,124.51,3.5800367]
[1769486850683,3.53289127,124.56,124.5,2.37015363]
[1769486851080,10.76799127,124.55,124.49,5.95019033]
[1769486851277,3.53289127,124.54,124.49,2.37015363]
[1769486851478,3.53289127,124.54,124.48,2.37015363]
[1769486852276,3.53289127,124.54,124.48,5.95019033]
[1769486853586,3.53289127,124.54,124.49,2.3667959]
[1769486854177,3.53289127,124.54,124.49,5.9468326]
[1769486854485,3.53289127,124.54,124.5,2.3667959]
[1769486855189,10.76879127,124.54,124.5,2.3667959]
[1769486855479,10.76879127,124.54,124.47,3.5800367]
[1769486855674,10.76879127,124.54,124.48,2.3667959]
[1769486856072,10.76879127,124.54,124.48,5.9468326]
[1769486857785,10.76879127,124.54,124.49,2.3667959]
[1769486860191,3.53289127,124.53,124.49,2.3667959]
[1769486860785,3.53289127,124.53,124.48,5.9468326]
[1769486860988,3.53289127,124.53,124.45,7.2407]
[1769486860989,3.53289127,124.51,124.46,5.9468326]
[1769486861490,3.53289127,124.5,124.44,5.9468326]
[1769486861791,5.89968717,124.5,124.44,3.5800367]
[1769486861990,3.53289127,124.5,124.44,5.9468326]
[1769486863092,3.53289127,124.49,124.44,3.5800367]
[1769486864690,3.53289127,124.49,124.44,5.9468326]
[1769486868585,3.53289127,124.49,124.45,2.3667959]
[1769486870594,3.53289127,124.49,124.44,5.9468326]
[1769486873698,3.53289127,124.49,124.45,2.3667959]
[1769486874398,10.57395733,124.52,124.47,2.3667959]
[1769486875296,3.33675733,124.51,124.47,2.3667959]
[1769486877702,3.33675733,124.51,124.46,5.9218283]
[1769486880902,3.33675733,124.53,124.47,5.9218283]
[1769486881203,5.70355323,124.51,124.45,3.5550324]
[1769486881505,3.33675733,124.49,124.43,5.9218283]
[1769486882306,10.57565733,124.49,124.43,5.9218283]
[1769486882608,12.94245323,124.49,124.43,3.5550324]
[1769486884710,10.57565733,124.49,124.43,5.9218283]
[1769486885014,10.57565733,124.49,124.44,2.3667959]
[1769486885611,10.57565733,124.49,124.43,5.9218283]
[1769486888020,10.57565733,124.49,124.44,3.5550324]
[1769486888208,3.33675733,124.49,124.44,5.9218283]
[1769486889913,10.57535733,124.49,124.44,3.5550324]
[1769486891512,3.33675733,124.49,124.44,3.5550324]
[1769486892622,3.33675733,124.49,124.45,5.9218283]
[1769486893121,3.33675733,124.49,124.45,3.5550324]
[1769486895620,3.33675733,124.49,124.45,5.9218283]
[1769486899220,3.33675733,124.48,124.43,5.9218283]
[1769486903524,3.33675733,124.48,124.44,3.42652505]
[1769486903718,10.57585733,124.48,124.44,5.79332095]
[1769486903925,3.31411987,124.5,124.44,5.79332095]
[1769486905025,10.55251987,124.5,124.44,5.79332095]
[1769486905329,3.31411987,124.52,124.46,5.79332095]
[1769486905728,16.71101405,124.52,124.46,5.79332095]
[1769486905929,3.31411987,124.52,124.47,5.79332095]
[1769486906930,3.31411987,124.52,124.46,2.3667959]
[1769486907133,3.31411987,124.52,124.45,5.79332095]
[1769486907830,5.68091577,124.52,124.46,3.42652505]
[1769486908035,12.91791577,124.52,124.46,3.42652505]
[1769486908331,10.55111987,124.52,124.46,5.79332095]
[1769486911735,10.55111987,124.52,124.47,2.3667959]
[1769486914435,10.55111987,124.52,124.46,5.79332095]
[1769486914836,10.55151987,124.51,124.46,5.79332095]
[1769486915637,10.55151987,124.51,124.46,5.79421995]
[1769486915934,3.31411987,124.53,124.47,5.79421995]
[1769486917136,10.55111987,124.52,124.47,5.79421995]
[1769486918436,10.55111987,124.52,124.48,2.3676949]
[1769486918735,7.237,124.52,124.48,5.79421995]
[1769486919429,3.31411987,124.54,124.49,5.79421995]
[1769486922233,3.31411987,124.54,124.5,2.3676949]
[1769486922434,3.31411987,124.56,124.51,5.79421995]
[1769486923132,10.54861987,124.56,124.51,5.79421995]
[1769486925041,7.2351,124.55,124.51,5.79421995]
[1769486925236,7.2351,124.55,124.51,3.42652505]
[1769486925739,10.54921987,124.55,124.5,2.3676949]
[1769486925937,10.54921987,124.55,124.5,5.79421995]
[1769486927144,5.68181477,124.57,124.51,3.42652505]
[1769486927348,5.68181477,124.57,124.51,5.79421995]
[1769486927638,3.31411987,124.57,124.51,5.79421995]
[1769486927940,7.2345,124.56,124.51,5.79421995]
[1769486929542,7.2345,124.56,124.52,2.3676949]
[1769486930437,3.31411987,124.59,124.53,5.79421995]
[1769486930636,3.31411987,124.59,124.54,2.3676949]
[1769486931636,10.54681987,124.59,124.54,5.79421995]
[1769486931836,3.31411987,124.61,124.55,5.79421995]
[1769486932340,3.31411987,124.61,124.56,5.65780123]
[1769486933837,3.31411987,124.61,124.57,2.3676949]
[1769486936344,3.31411987,124.61,124.56,5.65780123]
[1769486937143,10.54571987,124.61,124.56,5.65780123]
[1769486937443,3.31411987,124.61,124.56,5.65780123]
[1769486938241,3.31411987,124.61,124.56,3.29010633]
[1769486938843,3.31411987,124.61,124.55,2.3676949]
[1769486939445,3.31411987,124.61,124.55,5.65780123]
[1769486940051,10.54571987,124.61,124.55,5.65780123]
[1769486942051,10.54571987,124.61,124.56,2.3676949]
[1769486943140,3.39255427,124.59,124.54,2.3676949]
[1769486943347,3.39255427,124.58,124.53,3.29010633]
[1769486943953,3.39255427,124.58,124.52,2.3676949]
[1769486944651,3.39255427,124.58,124.52,5.65780123]
[1769486945046,3.39255427,124.58,124.52,3.29010633]
[1769486945752,3.39255427,124.58,124.52,5.65780123]
[1769486948753,3.39255427,124.58,124.53,3.29010633]
[1769486954258,3.39255427,124.58,124.53,5.65780123]
[1769486957361,3.39255427,124.58,124.53,3.29010633]
[1769486963470,3.39255427,124.58,124.53,5.65780123]
[1769486965672,3.39255427,124.58,124.53,3.29010633]
[1769486966777,3.39255427,124.58,124.53,12.89390123]
[1769486975984,10.60700572,124.63,124.58,3.2194219]
[1769486980086,10.60550572,124.65,124.61,2.3634475]
[1769486980587,10.60460572,124.67,124.61,5.5828694]
[1769486980893,10.60460572,124.67,124.62,2.3634475]
[1769486983795,10.60460572,124.67,124.62,5.5828694]
[1769486987190,3.37610572,124.67,124.62,5.5828694]
[1769486987395,3.37610572,124.71,124.63,3.2194219]
[1769486987598,3.37610572,124.71,124.66,3.2194219]
[1769486988302,10.60230572,124.71,124.66,5.5828694]
[1769486988495,3.37610572,124.73,124.67,5.5828694]
[1769486988899,3.37610572,124.73,124.68,2.3634475]
[1769486989305,3.37610572,124.73,124.68,5.5828694]
[1769486990502,3.37610572,124.73,124.69,2.3634475]
[1769486990903,3.37610572,124.77,124.72,5.5828694]
[1769486991106,3.37610572,124.77,124.73,2.3634475]
[1769486991804,5.73955322,124.77,124.7,3.2194219]
[1769486991993,3.37610572,124.77,124.72,5.5828694]
[1769486993503,10.7672864,124.79,124.73,3.49671187]
[1769486993890,13.1307339,124.79,124.73,3.49671187]
[1769486994093,10.7672864,124.79,124.73,5.86015937]
[1769486994296,13.1297339,124.81,124.74,5.86015937]
[1769486994493,10.7662864,124.81,124.75,5.86015937]
[1769486994894,10.7662864,124.81,124.75,3.49671187]
[1769486995699,13.1297339,124.81,124.75,3.49671187]
[1769486996106,2.3634475,124.8,124.75,3.49671187]
[1769486996801,3.5459864,124.79,124.7,7.2259]
[1769486997005,5.9094339,124.79,124.72,2.3634475]
[1769486998807,5.9094339,124.79,124.72,5.59034353]
[1769486999108,13.1307339,124.79,124.72,5.59034353]
[1769486999309,5.9094339,124.77,124.72,3.22689603]
[1769486999504,5.9094339,124.77,124.7,5.59034353]
[1769486999703,2.3634475,124.76,124.7,3.22689603]
[1769486999903,5.9094339,124.77,124.71,3.22673474]
[1769487000112,13.1319339,124.77,124.71,3.22673474]
[1769487000807,5.9094339,124.76,124.71,3.22673474]
[1769487001003,3.5459864,124.76,124.71,5.59018224]
[1769487001208,10.7673864,124.79,124.73,5.59002281]
[1769487001401,3.5459864,124.81,124.75,5.59002281]
[1769487001604,3.5459864,124.81,124.76,2.3634475]
[1769487002205,3.5459864,124.81,124.76,5.5898652]
[1769487004115,3.5459864,124.83,124.78,2.3634475]
[1769487004415,3.5459864,124.85,124.79,2.3634475]
[1769487005709,5.9094339,124.85,124.79,2.3634475]
[1769487006715,5.9094339,124.85,124.78,5.5895554]
[1769487006911,13.1272339,124.85,124.78,5.5895554]
[1769487007812,10.7637864,124.85,124.78,5.5895554]
[1769487008218,10.7637864,124.85,124.79,2.3634475]
[1769487010318,10.7628864,124.87,124.82,2.3634475]
[1769487010614,3.5459864,124.89,124.83,3.22507828]
[1769487010821,3.5459864,124.89,124.83,5.58852578]
[1769487011220,10.7620864,124.88,124.82,2.3634475]
[1769487011423,10.7620864,124.88,124.81,5.58852578]
[1769487011825,10.7620864,124.88,124.79,62.0]
[1769487011826,7.2161,124.88,124.82,5.58838537]
[1769487012325,2.3634475,124.86,124.8,3.22493787]
[1769487012525,5.9094339,124.85,124.78,5.58838537]
[1769487012829,2.3634475,124.84,124.78,5.58838537]
[1769487013028,5.9094339,124.84,124.78,3.22493787]
[1769487013327,13.1278339,124.84,124.78,3.22493787]
[1769487014628,10.7643864,124.84,124.79,2.3634475]
[1769487014925,13.1268339,124.86,124.79,5.58797375]
[1769487015127,10.7633864,124.86,124.81,2.3634475]
[1769487016633,3.5459864,124.86,124.81,2.3634475]
[1769487020634,3.5459864,124.86,124.82,2.3634475]
[1769487021533,3.55767133,124.88,124.82,2.3634475]
[1769487021738,3.55767133,124.88,124.82,5.58177217]